[Event "Pan-American Collegiate-ch 2025"]
[Site "Charlotte"]
[Date "2025.01.04"]
[Round "4.28"]
[White "Bruha, Nicholas"]
[Black "Dhanush Bharadwaj"]
[Result "0-1"]
[Annotator "TA"]
[ECO "A36"]
[WhiteElo "2019"]
[BlackElo "2238"]
[PlyCount "162"]
[EventDate "2025.01.02"]
[EventType "team-tourn"]
[EventCountry "USA"]
[SourceTitle "playchess.com"]
[Source "ChessBase"]
[SourceQuality "1"]
[TimeControl "5400+30"]

{[%evp 59,162,38,31,42,54,-10,44,0,50,60,47,6,33,6,23,6,43,0,0,0,0,0,0,0,0,0,0,0,0,0,0,0,0,0,0,0,8,0,0,0,0,0,0,0,0,-81,-81,-81,-78,-209,-208,-208,-211,-257,-254,-319,-312,-485,-485,-437,-426,-502,-461,-374,-273,-1180,-895,-1184,-1177,-1178,-1178,-1150,-1150,-1122,-795,-11081,-11117,-9402,-7777,-5193,-7334,-29972,-29973,-29973,-29974,-29975,-29974,-29974,-29975,-29975,-29976,-29976,-29977,-29976,-29978,-29978,-29979,-29980,-29980,-29979,-29980,-29980,-29980,-29979,-29979]} 1. c4 {[%emt 0:00:12]} Nf6 {[%emt 1:31:00]} 2. Nc3 {[%emt 0:00:37]} g6 {[%emt 0:00:00]} 3. e4 {[%emt 0:01:02]} d6 {[%emt 0:00:00]} 4. g3 {[%emt 0:00:13]} Bg7 {[%emt 0:00:00]} 5. Bg2 {[%emt 0:00:08]} O-O {[%emt 0:00:00]} 6. Nge2 {[%emt 0:00:25]} c5 {[%emt 0:00:00]} 7. O-O {[%emt 0:01:07]} Nc6 {[%emt 0:00:00]} 8. d3 {[%emt 0:02:35]} a6 {[%emt 0:00:00]} 9. Rb1 {[%emt 0:01:14]} Rb8 {[%emt 0:00:00]} 10. a4 {[%emt 0:00:35]} Ne8 {[%emt 0:00:00]} 11. Be3 {[%emt 0:01:56]} Bg4 {[%emt 0:00:00]} 12. f3 {[%emt 0:02:49]} Bd7 {[%emt 0:00:00]} 13. d4 {[%emt 0:01:36]} cxd4 {[%emt 0:00:00]} 14. Nxd4 {[%emt 0:00:10]} Nc7 {[%emt 0:00:00]} 15. b3 {[%emt 0:07:29]} Re8 {[%emt 0:00:00]} 16. f4 {[%emt 0:12:53]} Nb4 {[%emt 0:00:00]} 17. Qd2 {[%emt 0:17:29]} Nc6 {[%emt 0:00:00]} 18. b4 {[%emt 0:14:41]} Rf8 {[%emt 0:00:37]} 19. Nc2 {[%emt 0:08:29]} b6 {[%emt 0:02:55]} 20. Rfd1 {[%emt 0:08:00]} Bg4 {[%emt 0:05:58]} 21. Rdc1 {[%emt 0:00:11]} Qd7 {[%emt 0:00:00]} 22. Nd5 {[%emt 0:02:53]} Nxd5 {[%emt 0:00:00]} 23. cxd5 {[%emt 0:00:02]} Na7 {[%emt 0:00:00]} 24. Bf1 {[%emt 0:06:37]} Qxa4 {[%emt 0:00:00]} 25. Nd4 {[%emt 0:00:29]} Bxd4 {[%emt 0:00:00]} 26. Bxd4 {[%emt 0:00:26]} Nb5 {[%emt 0:00:00]} 27. Ra1 {[%emt 0:01:11]} Nxd4 {[%emt 0:00:34]} 28. Qxd4 {[%emt 0:00:10]} Qb3 {[%emt 0:00:31]} 29. Rcb1 {[%emt 0:01:27]} Qc2 {[%emt 0:00:18]} 30. Bd3 {[%emt 0:00:24]} (30. Bxa6 Bf3 31. Qf2 Qxe4 (31... Bxe4 32. Qxc2 Bxc2 33. Re1 $15) (31... Qxf2+ 32. Kxf2 Bxe4 33. Re1 $15) 32. Rb3 $17) 30... Qc7 {[%emt 0:00:45]} (30... Qd2 $2 31. Rb2 $18 (31. Rxa6 $2 Bh3 $19)) 31. Rc1 {[%emt 0:00:33]} Qd7 {[%emt 0:00:17]} 32. Bxa6 {[%emt 0:01:16]} ({Better is} 32. Rxa6 $14 Rfc8 33. Rca1) 32... e6 {[%emt 0:01:08]} (32... b5 $11) 33. Rc6 {[%emt 0:02:17]} exd5 {[%emt 0:00:09]} (33... b5 $11) 34. Qxd5 $14 {[%emt 0:00:43]} (34. Rxb6 Rxb6 35. Qxb6 dxe4 $17) 34... Rfd8 {[%emt 0:01:44]} 35. b5 {[%emt 0:03:08]} Be6 {[%emt 0:00:39]} (35... Qe7 $5) 36. Qd4 {[%emt 0:00:07]} d5 {[%emt 0:00:04]} 37. e5 {[%emt 0:00:32]} (37. Rxb6 Rxb6 38. Qxb6 dxe4 $17) 37... Qe7 {[%emt 0:00:18]} 38. Rac1 {[%emt 0:01:56]} (38. Rxb6 Rxb6 39. Qxb6 d4 $17) 38... Qa3 {[%emt 0:00:11]} 39. Qc3 {[%emt 0:00:54]} Qxc3 {[%emt 0:01:22]} 40. R1xc3 {[%emt 0:00:10]} d4 {[%emt 0:00:04]} 41. Rd3 {[%emt 0:00:36]} Bf5 {[%emt 0:00:09]} 42. Rd2 {[%emt 0:00:08]} d3 {[%emt 0:00:07]} 43. Kf2 {[%emt 0:00:38]} h5 {[%emt 0:00:06]} 44. Ke3 {[%emt 0:00:35]} Rd5 {[%emt 0:00:35]} 45. h3 {[%emt 0:00:26]} Kf8 {[%emt 0:02:11]} 46. g4 {[%emt 0:00:17]} hxg4 {[%emt 0:00:05]} 47. hxg4 {[%emt 0:00:02]} Bd7 {[%emt 0:01:02]} 48. Rd6 {[%emt 0:01:32]} Rxd6 {[%emt 0:00:05]} 49. exd6 {[%emt 0:00:03]} Bxg4 {[%emt 0:00:06]} 50. Rxd3 {[%emt 0:00:28]} Ke8 {[%emt 0:00:16]} 51. Kd4 {[%emt 0:00:47]} Kd7 {[%emt 0:00:06]} 52. Kd5 {[%emt 0:00:48]} (52. Ke5 $11 {keeps the balance.}) 52... Be6+ $17 {[%emt 0:00:29]} 53. Ke5 {[%emt 0:00:29] [#]} Rh8 $1 {[%emt 0:00:47]} 54. Rd4 {[%emt 0:00:55]} (54. Rc3 $17) 54... Rh5+ $19 {[%emt 0:00:29]} 55. Ke4 {[%emt 0:00:23]} Rc5 {[%emt 0:00:37]} 56. Rd2 {[%emt 0:00:36]} Bc4 {[%emt 0:00:55]} 57. Bb7 {[%emt 0:00:29]} Bxb5 {[%emt 0:00:18]} (57... Rxb5 58. Ke3 Be6 59. Bf3 $19) 58. Bd5 {[%emt 0:00:30]} (58. Rb2 $142) 58... Bc6 $19 {[%emt 0:00:31]} (58... Kxd6 59. Bxf7+ Ke7 60. Bxg6 $11) 59. Bxc6+ {[%emt 0:00:24]} Rxc6 {[%emt 0:00:04]} (59... Kxc6 $2 {too greedy.} 60. d7 $18) 60. Ke5 {[%emt 0:00:13]} Rc5+ {[%emt 0:00:04]} 61. Ke4 {[%emt 0:00:34]} b5 {[%emt 0:00:04]} 62. Rd3 $2 {[%emt 0:00:40]} (62. Ke3) 62... b4 $19 {[%emt 0:00:12]} 63. Rb3 {[%emt 0:00:48]} Rb5 {[%emt 0:00:06]} ({Less strong is} 63... Kxd6 64. Rxb4 Ra5 65. Rb3 $15) 64. Kd4 {[%emt 0:00:09]} Kxd6 {[%emt 0:00:06]} 65. Kc4 {[%emt 0:00:02]} Rb7 {[%emt 0:00:07]} 66. Rd3+ {[%emt 0:00:14]} Ke6 {[%emt 0:00:05]} 67. Kb3 {[%emt 0:00:06]} Kf5 {[%emt 0:00:13]} 68. Rd4 {[%emt 0:00:08]} f6 {[%emt 0:00:11]} 69. Rc4 {[%emt 0:00:12]} g5 {[%emt 0:00:16]} 70. fxg5 {[%emt 0:00:11]} fxg5 {[%emt 0:00:05]} 71. Rc8 {[%emt 0:00:03]} g4 {[%emt 0:00:07]} 72. Rf8+ {[%emt 0:00:07]} Kg5 {[%emt 0:00:06]} 73. Rg8+ {[%emt 0:00:03]} Kf4 {[%emt 0:07:46]} 74. Rf8+ {[%emt 0:00:07]} Kg3 {[%emt 0:00:00]} 75. Rg8 {[%emt 0:00:12]} Kf3 {[%emt 0:00:00]} 76. Rf8+ {[%emt 0:00:03] [#]} Kg2 $1 {[%emt 0:00:00]} 77. Rg8 {[%emt 0:00:03]} g3 {[%emt 0:00:00]} 78. Rg6 {[%emt 0:00:05]} Kf2 {[%emt 0:00:00]} 79. Rf6+ {[%emt 0:00:04]} Kg1 {[%emt 0:00:00]} 80. Rg6 {[%emt 0:00:03]} g2 {[%emt 0:00:00]} 81. Rg8 {[%emt 0:00:02]} Rf7 {[%emt 0:00:00]} 0-1